bitfinex/quotes_BTCUSD_20250908
["timestamp","ask_amount","ask_price","bid_price","bid_amount"]
[1757312862188,0.0104,111280.0,111270.0,1.11352248]
[1757312862397,0.0104,111280.0,111270.0,1.26320248]
[1757312862815,0.01352,111280.0,111270.0,1.26320248]
[1757312863225,0.0104,111280.0,111270.0,1.26320248]
[1757312864772,0.01237,111280.0,111270.0,0.92478833]
[1757312865189,0.01352,111280.0,111270.0,1.26320248]
[1757312866355,0.01352,111280.0,111270.0,1.66320248]
[1757312866765,0.01549,111280.0,111270.0,1.07446833]
[1757312866963,0.20408415,111280.0,111270.0,0.56384951]
[1757312867336,0.20408415,111280.0,111270.0,0.71356951]
[1757312867726,0.20408415,111280.0,111270.0,0.73450833]
[1757312868146,0.20408415,111280.0,111270.0,0.47130833]
[1757312869750,0.20408415,111280.0,111270.0,0.32158833]
[1757312869977,0.3926783,111280.0,111270.0,0.32158833]
[1757312870217,0.3926783,111280.0,111270.0,0.27365895]
[1757312870428,0.3926783,111280.0,111270.0,0.42337895]
[1757312870631,0.3926783,111280.0,111270.0,0.44331777]
[1757312871093,0.3926783,111280.0,111270.0,0.44431777]
[1757312871332,0.3926783,111280.0,111270.0,0.27365895]
[1757312871590,0.3926783,111280.0,111270.0,0.42137895]
[1757312872010,0.41967705,111280.0,111270.0,0.42137895]
[1757312873112,0.41967705,111280.0,111270.0,0.42237895]
[1757312873737,0.04248875,111280.0,111270.0,0.42237895]
[1757312873932,0.42248528,111280.0,111270.0,0.42237895]
[1757312874099,0.41967705,111280.0,111270.0,0.42237895]
[1757312876414,0.04248875,111280.0,111270.0,0.42237895]
[1757312876657,0.42248528,111280.0,111270.0,0.42237895]
[1757312876863,0.41967705,111280.0,111270.0,0.42237895]
[1757312882207,0.04248875,111280.0,111270.0,0.42237895]
[1757312882398,0.42248528,111280.0,111270.0,0.42237895]
[1757312882568,0.41967705,111280.0,111270.0,0.42237895]
[1757312891010,0.3926783,111280.0,111270.0,0.42237895]
[1757312894463,0.20411629,111280.0,111270.0,0.42237895]
[1757312896254,0.3838431,111280.0,111270.0,0.42241895]
[1757312898006,0.20411629,111280.0,111270.0,0.42241895]
[1757312901679,0.22033196,111280.0,111270.0,0.42241895]
[1757312901985,0.20411629,111280.0,111270.0,0.42241895]
[1757312904512,0.20411629,111280.0,111270.0,0.42233895]
[1757312917230,0.20411629,111280.0,111270.0,0.27265895]
[1757312917462,0.20411629,111280.0,111270.0,0.42225895]
[1757312921310,0.01549,111280.0,111270.0,0.42225895]
[1757312921525,0.01829823,111280.0,111270.0,0.42225895]
[1757312921757,0.20692452,111280.0,111270.0,0.42225895]
[1757312921964,0.20411629,111280.0,111270.0,0.42225895]
[1757312926857,0.20411629,111280.0,111270.0,0.27265895]
[1757312927072,0.3838431,111280.0,111270.0,0.001]
[1757312927488,0.41084312,111280.0,111270.0,0.001]
[1757312927930,0.59946941,111280.0,111270.0,0.001]
[1757312928141,0.69340941,111280.0,111270.0,0.001]
[1757312928343,1.03340941,111280.0,111270.0,0.001]
[1757312930459,0.17974296,111270.0,111260.0,0.17975622]
[1757312930673,0.37347925,111270.0,111260.0,0.17975622]
[1757312930837,0.52311925,111270.0,111260.0,0.17975622]
[1757312931053,0.5501223,111270.0,111260.0,0.17975622]
[1757312933142,0.22073934,111270.0,111260.0,0.17975622]
[1757312933385,0.37037934,111270.0,111260.0,0.17975622]
[1757312933606,0.22073934,111270.0,111260.0,0.29261103]
[1757312933835,0.22073934,111270.0,111260.0,0.29275103]
[1757312934018,0.22073934,111270.0,111260.0,0.29261103]
[1757312934190,0.19373629,111270.0,111260.0,0.29261103]
[1757312934794,0.00511,111270.0,111260.0,0.29261103]
[1757312935011,0.00791848,111270.0,111260.0,0.29261103]
[1757312935207,0.00791848,111270.0,111260.0,0.29275103]
[1757312935920,0.00791848,111270.0,111260.0,0.29261103]
[1757312945264,0.18766144,111270.0,111260.0,0.29261103]
[1757312945443,0.37347925,111270.0,111260.0,0.11285481]
[1757312945677,0.37347925,111270.0,111260.0,0.09191599]
[1757312945858,0.37347925,111270.0,111260.0,0.24155599]
[1757312947288,0.00511,111270.0,111260.0,0.42131511]
[1757312947490,0.00511,111270.0,111260.0,0.44225393]
[1757312947707,0.00791848,111270.0,111260.0,0.44225393]
[1757312948515,0.19654477,111270.0,111260.0,0.44225393]
[1757312948739,0.37347925,111270.0,111260.0,0.44225393]
[1757312950036,0.18485296,111270.0,111260.0,0.44225393]
[1757312950289,0.37347925,111270.0,111260.0,0.44225393]
[1757312951986,0.37347925,111270.0,111260.0,0.11285481]
[1757312952236,0.37347925,111270.0,111260.0,0.44225393]
[1757312953362,0.00511,111270.0,111260.0,0.44225393]
[1757312953567,0.19654477,111270.0,111260.0,0.29261393]
[1757312953789,0.19373629,111270.0,111260.0,0.29261393]
[1757312954666,0.37347925,111270.0,111260.0,0.29261393]
[1757312954849,0.37347925,111270.0,111260.0,0.44225393]
[1757312955392,0.00511,111270.0,111260.0,0.44225393]
[1757312955616,0.19654477,111270.0,111260.0,0.44225393]
[1757312955822,0.19373629,111270.0,111260.0,0.44225393]
[1757312956487,0.19376374,111270.0,111260.0,0.44225393]
[1757312966846,0.00511,111270.0,111260.0,0.44225393]
[1757312967071,0.19657222,111270.0,111260.0,0.44225393]
[1757312967248,0.19376374,111270.0,111260.0,0.44225393]
[1757312969025,0.00511,111270.0,111260.0,0.44225393]
[1757312969241,0.19657222,111270.0,111260.0,0.44225393]
[1757312969449,0.19376374,111270.0,111260.0,0.44225393]
[1757312970258,0.00511,111270.0,111260.0,0.44225393]
[1757312970456,0.19376374,111270.0,111260.0,0.44225393]
[1757312971306,0.00511,111270.0,111260.0,0.44225393]
[1757312971568,0.00791848,111270.0,111260.0,0.44225393]
[1757312971791,0.19657222,111270.0,111260.0,0.44225393]
[1757312972002,0.19376374,111270.0,111260.0,0.44225393]
[1757312972565,0.00511,111270.0,111260.0,0.44225393]
[1757312972810,0.19657222,111270.0,111260.0,0.44225393]
[1757312972990,0.19376374,111270.0,111260.0,0.44225393]
[1757312975808,0.00511,111270.0,111260.0,0.44225393]
[1757312976023,0.19657222,111270.0,111260.0,0.44225393]
[1757312976245,0.19376374,111270.0,111260.0,0.44225393]
[1757312976852,0.00511,111270.0,111260.0,0.44225393]
[1757312977114,0.00791848,111270.0,111260.0,0.44239393]
[1757312977291,0.19657222,111270.0,111260.0,0.44239393]
[1757312977464,0.19376374,111270.0,111260.0,0.44239393]
[1757312978250,0.19376374,111270.0,111260.0,0.44225393]
[1757312979054,0.19376374,111270.0,111260.0,0.44239393]
[1757312979418,0.19376374,111270.0,111260.0,0.44225393]
[1757312984950,0.00511,111270.0,111260.0,0.44225393]
[1757312985257,0.19657222,111270.0,111260.0,0.44225393]
[1757312985475,0.19376374,111270.0,111260.0,0.44225393]
[1757312988757,0.19376374,111270.0,111260.0,0.29261393]
[1757312988954,0.19376374,111270.0,111260.0,0.44221393]
[1757312995345,0.19376374,111270.0,111260.0,0.44235393]
[1757312995940,0.19376374,111270.0,111260.0,0.44221393]
[1757312998658,0.00511,111270.0,111260.0,0.44221393]
[1757312998814,0.19657222,111270.0,111260.0,0.44235393]
[1757312999163,0.19376374,111270.0,111260.0,0.44235393]
[1757312999362,0.19376374,111270.0,111260.0,0.44221393]
[1757313003300,0.0405588,111280.0,111270.0,0.20068178]
[1757313003516,0.01356,111280.0,111270.0,0.48139151]
[1757313004109,0.0104,111280.0,111270.0,0.48139151]
[1757313008782,0.0104,111280.0,111270.0,0.29273777]
[1757313008979,0.0104,111280.0,111270.0,0.48139151]
[1757313012537,0.0104,111280.0,111270.0,0.29273777]
[1757313012748,0.0104,111280.0,111270.0,0.48139151]
[1757313014532,0.01356,111280.0,111270.0,0.50838774]
[1757313014736,0.01356,111280.0,111270.0,0.319734]
[1757313014911,0.01356,111280.0,111270.0,0.50838774]
[1757313015531,0.01356,111280.0,111270.0,0.319734]
[1757313015729,0.01356,111280.0,111270.0,0.50838774]
[1757313016295,0.01356,111280.0,111270.0,0.319734]
[1757313017425,0.0104,111280.0,111270.0,0.57734398]
[1757313018745,0.0104,111280.0,111270.0,0.388774]
[1757313020433,0.01356,111280.0,111270.0,0.388774]
[1757313021495,0.01556,111280.0,111270.0,0.388634]
[1757313021681,0.20412998,111280.0,111270.0,0.469394]
[1757313021922,0.20412998,111280.0,111270.0,0.469474]
[1757313022361,0.20412998,111280.0,111270.0,0.44247777]
[1757313023510,0.01556,111280.0,111270.0,0.44247777]
[1757313023722,0.20693821,111280.0,111270.0,0.44247777]
[1757313023953,0.20412998,111280.0,111270.0,0.44247777]
[1757313024567,0.20412998,111280.0,111270.0,0.29259777]
[1757313024879,0.20412998,111280.0,111270.0,0.44247777]
[1757313029278,0.01556,111280.0,111270.0,0.44247777]
[1757313029436,0.20693821,111280.0,111270.0,0.44247777]
[1757313029639,0.20412998,111280.0,111270.0,0.44247777]
[1757313030442,0.20412998,111280.0,111270.0,0.44243777]
[1757313031004,0.01556,111280.0,111270.0,0.44243777]
[1757313031208,0.20693821,111280.0,111270.0,0.44243777]
[1757313031401,0.20412998,111280.0,111270.0,0.44243777]
[1757313035041,0.01556,111280.0,111270.0,0.44243777]
[1757313035268,0.01836823,111280.0,111270.0,0.44243777]
[1757313038770,0.01556,111280.0,111270.0,0.44257777]
[1757313039497,0.01556,111280.0,111270.0,0.44243777]
[1757313039912,0.01556,111280.0,111270.0,0.44243777]
[1757313049395,0.01556,111280.0,111270.0,0.44257777]
[1757313051235,0.01556,111280.0,111270.0,0.44243777]
[1757313051773,0.01556,111280.0,111270.0,0.44257777]
[1757313053403,0.01556,111280.0,111270.0,0.44243777]
[1757313056586,0.01556,111280.0,111270.0,0.44257777]
[1757313060704,0.0104,111280.0,111270.0,0.63114775]
[1757313060912,0.0104,111280.0,111270.0,0.65814361]
[1757313061523,0.0104,111280.0,111270.0,0.65823361]
[1757313061736,0.0104,111280.0,111270.0,0.65814361]
[1757313064695,0.0104,111280.0,111270.0,0.65823361]
[1757313066115,0.0104,111280.0,111270.0,0.65798361]
[1757313069732,0.0104,111280.0,111270.0,0.65794361]
[1757313070532,0.0104,111280.0,111270.0,0.65803361]
[1757313071966,0.0104,111280.0,111270.0,1.05803361]
[1757313072175,0.0104,111280.0,111270.0,0.71973363]
[1757313072375,0.01348,111280.0,111270.0,0.86927363]
[1757313072601,0.01553,111280.0,111270.0,0.86941363]
[1757313073201,0.01348,111280.0,111270.0,0.86941363]
[1757313073850,0.01348,111280.0,111270.0,0.93845363]
[1757313074102,0.01348,111280.0,111270.0,1.12702361]
[1757313074627,0.01348,111280.0,111270.0,0.72702361]
[1757313078431,0.01348,111280.0,111270.0,0.72700379]
[1757313079528,0.0104,111280.0,111270.0,0.72700379]
[1757313080605,0.0104,111280.0,111270.0,0.91555395]
[1757313083957,0.0104,111280.0,111270.0,0.53845363]
[1757313084350,0.0104,111280.0,111270.0,0.91555395]
[1757313090645,0.0104,111280.0,111270.0,0.91551395]
[1757313093101,0.0104,111280.0,111270.0,0.76587395]
[1757313093392,0.0104,111280.0,111270.0,0.91551395]
[1757313100842,0.0104,111280.0,111270.0,0.91560395]
[1757313101617,0.0104,111280.0,111270.0,0.91551395]
[1757313105827,0.0104,111280.0,111270.0,1.31551395]
[1757313110906,0.0104,111280.0,111270.0,0.91551395]
[1757313114036,0.01347,111280.0,111270.0,0.91551395]
[1757313114216,0.0104,111280.0,111270.0,0.91551395]
[1757313114933,0.0104,111280.0,111270.0,1.31551395]
[1757313115769,0.01347,111280.0,111270.0,1.31547395]
[1757313117183,0.01347,111280.0,111270.0,0.91547395]
[1757313118188,0.01557,111280.0,111270.0,0.76587395]
[1757313118388,0.01557,111280.0,111270.0,0.91533395]
[1757313118636,0.01557,111280.0,111270.0,0.91547395]
[1757313120590,0.01347,111280.0,111270.0,0.91547395]
[1757313121015,0.01347,111280.0,111270.0,1.31547395]
[1757313122202,0.01347,111280.0,111270.0,0.91547395]
[1757313122608,0.01347,111280.0,111270.0,1.31547395]
[1757313128291,0.01347,111280.0,111270.0,0.38863363]
[1757313128476,0.20412016,111280.0,111270.0,0.38863363]
[1757313128797,0.01557,111280.0,111270.0,0.51729481]
[1757313129000,0.4108446,111280.0,111270.0,0.09191599]
[1757313129199,0.4108446,111280.0,111270.0,0.1496]
[1757313130313,0.4108446,111280.0,111270.0,0.32934296]
[1757313130633,0.4108446,111280.0,111270.0,0.1496]
[1757313131454,0.22229444,111280.0,111270.0,0.1496]
[1757313131644,0.4108446,111280.0,111270.0,0.1496]
[1757313132629,0.4108446,111280.0,111260.0,0.17975912]
[1757313132826,0.00280848,111270.0,111260.0,0.44221393]
[1757313133037,0.00587848,111270.0,111260.0,0.44221393]
[1757313133251,0.00797848,111270.0,111260.0,0.44221393]
[1757313133500,0.40327181,111270.0,111260.0,0.24151599]
[1757313133711,0.40046333,111270.0,111260.0,0.1496]
[1757313134505,0.40046333,111270.0,111260.0,0.32935912]
[1757313134660,0.21191317,111270.0,111260.0,0.32935912]
[1757313135465,0.21191317,111270.0,111260.0,0.33035912]
[1757313141050,0.03217021,111270.0,111260.0,0.61105266]
[1757313141305,0.03217021,111270.0,111260.0,0.63199148]
[1757313141667,0.03217021,111270.0,111260.0,0.44321393]
[1757313141840,0.03217021,111270.0,111260.0,0.63185148]
[1757313142054,0.03497869,111270.0,111260.0,0.63185148]
[1757313145062,0.03217021,111270.0,111260.0,0.63185148]
[1757313147053,0.03217021,111270.0,111260.0,0.63199148]
[1757313147234,0.03217021,111270.0,111260.0,0.44335393]
[1757313147438,0.03007021,111270.0,111260.0,0.63199148]
[1757313147640,0.03209021,111270.0,111260.0,0.63199148]
[1757313150787,0.01352,111280.0,111270.0,0.20068178]
[1757313151038,0.01352,111280.0,111270.0,0.48137532]
[1757313151039,0.01554,111280.0,111270.0,0.48137532]
[1757313151925,0.01554,111280.0,111270.0,0.48123532]
[1757313162592,0.19526681,111280.0,111260.0,0.36839667]
[1757313162767,0.53038436,111280.0,111260.0,0.42127511]
[1757313162969,0.00312,111270.0,111260.0,0.44221393]
[1757313163631,0.00514,111270.0,111260.0,0.44221393]
[1757313163796,0.00794848,111270.0,111260.0,0.44221393]
[1757313164791,0.00794848,111270.0,111260.0,0.44321393]
[1757313169358,0.00514,111270.0,111260.0,0.44321393]
[1757313171690,0.00514,111270.0,111260.0,0.63185148]
[1757313171897,0.00794848,111270.0,111260.0,0.63185148]
[1757313179541,0.00514,111270.0,111260.0,0.63185148]
[1757313180303,0.00514,111270.0,111260.0,0.48225148]
[1757313180508,0.00514,111270.0,111260.0,0.63185148]
[1757313186369,0.00514,111270.0,111260.0,0.63199148]
[1757313186572,0.00514,111270.0,111260.0,0.63185148]
[1757313187816,0.00794848,111270.0,111260.0,0.63185148]
[1757313196741,0.00312,111270.0,111260.0,0.63199148]
[1757313196956,0.04020844,111280.0,111270.0,0.17974296]
[1757313197309,0.04319844,111280.0,111270.0,0.6098565]
[1757313197551,0.04521844,111280.0,111270.0,0.6098565]
[1757313198535,0.04521844,111280.0,111270.0,0.60979613]
[1757313200417,0.22494525,111280.0,111270.0,0.60979613]
[1757313200608,0.22213702,111280.0,111270.0,0.60979613]
[1757313200843,0.04241021,111280.0,111270.0,0.60979613]
[1757313201048,0.04521844,111280.0,111270.0,0.42121895]
[1757313201260,0.04521844,111280.0,111270.0,0.60979613]
[1757313202311,0.04521844,111280.0,111270.0,0.42121895]
[1757313202446,0.22494525,111280.0,111270.0,0.42121895]
[1757313202657,0.22213702,111280.0,111270.0,0.60979613]
[1757313203035,0.22213702,111280.0,111270.0,0.46023613]
[1757313204495,0.04241021,111280.0,111270.0,0.46023613]
[1757313204651,0.04521844,111280.0,111270.0,0.46023613]
[1757313214825,0.22494525,111280.0,111270.0,0.27165895]
[1757313215073,0.37169702,111280.0,111270.0,0.09191599]
[1757313215275,0.5602742,111280.0,111270.0,0.09191599]
[1757313215890,0.37169702,111280.0,111270.0,0.09191599]
[1757313216093,0.37169702,111280.0,111270.0,0.27165895]
[1757313216947,0.37169702,111280.0,111270.0,0.46023613]
[1757313217543,0.22213702,111280.0,111270.0,0.46023613]
[1757313219998,0.22213702,111280.0,111270.0,0.27165895]
[1757313220184,0.4107142,111280.0,111270.0,0.09191599]
[1757313220391,0.22213702,111280.0,111270.0,0.09191599]
[1757313220593,0.4107142,111280.0,111270.0,0.09191599]
[1757313222008,0.22213702,111280.0,111270.0,0.09191599]
[1757313222646,0.4107142,111280.0,111270.0,0.09191599]
[1757313225769,0.4107142,111280.0,111270.0,0.27165895]
[1757313225977,0.4107142,111280.0,111270.0,0.09191599]
[1757313226301,0.4107142,111280.0,111270.0,0.27165895]
[1757313229231,0.4107142,111280.0,111270.0,0.09191599]
[1757313230629,0.4107142,111280.0,111270.0,0.27165895]
[1757313231810,0.4107142,111280.0,111260.0,0.20069794]
[1757313231988,0.19138566,111270.0,111260.0,0.44217393]
[1757313232249,0.00518,111270.0,111260.0,0.44217393]
[1757313232424,0.00798848,111270.0,111260.0,0.44217393]
[1757313233651,0.00798848,111270.0,111260.0,0.63075111]
[1757313234404,0.00798848,111270.0,111260.0,0.63175111]
[1757313236755,0.00798848,111270.0,111260.0,0.44317393]
[1757313238465,0.00798848,111270.0,111260.0,0.63175111]
[1757313242938,0.00798848,111270.0,111260.0,0.63189111]
[1757313243522,0.00518,111270.0,111260.0,0.63189111]
[1757313243928,0.00518,111270.0,111260.0,0.44331393]
[1757313244132,0.00518,111270.0,111260.0,0.63189111]
[1757313245005,0.00312,111270.0,111260.0,0.63189111]
[1757313245220,0.00312,111270.0,111260.0,0.44331393]
[1757313245435,0.00518,111270.0,111260.0,0.63189111]
[1757313245633,0.00518,111270.0,111260.0,0.44331393]
[1757313245834,0.00518,111270.0,111260.0,0.63189111]
[1757313249288,0.00312,111270.0,111260.0,0.63189111]
[1757313249490,0.00518,111270.0,111260.0,0.63189111]
[1757313251444,0.00518,111270.0,111260.0,0.64189111]
[1757313251815,0.03218019,111270.0,111260.0,0.64189111]
[1757313260423,0.03218019,111270.0,111260.0,0.45331393]
[1757313262378,0.03012019,111270.0,111260.0,0.45331393]
[1757313262525,0.02700019,111270.0,111260.0,0.64192598]
[1757313265522,0.03022019,111270.0,111260.0,0.64192598]
[1757313268724,0.03022019,111270.0,111260.0,0.55872598]
[1757313272259,0.02700019,111270.0,111260.0,0.55872598]
[1757313273631,0.03022019,111270.0,111260.0,0.55872598]
[1757313274360,0.02700019,111270.0,111260.0,0.55872598]
[1757313275015,0.01642823,111280.0,111270.0,0.17974296]
[1757313275222,0.04342701,111280.0,111270.0,0.27165895]
[1757313275422,0.04542701,111280.0,111270.0,0.27165895]
[1757313282541,0.22515382,111280.0,111270.0,0.27165895]
[1757313282792,0.22234559,111280.0,111270.0,0.27165895]
[1757313286698,0.22234559,111280.0,111270.0,0.09191599]
[1757313289561,0.22234559,111280.0,111270.0,0.27165895]
[1757313291869,0.41095764,111280.0,111270.0,0.27165895]
[1757313292324,0.22234559,111280.0,111270.0,0.27165895]
[1757313294967,0.04261878,111280.0,111270.0,0.27165895]
[1757313295168,0.04542701,111280.0,111270.0,0.27165895]
[1757313302401,0.22515382,111280.0,111270.0,0.27165895]
[1757313302606,0.22234559,111280.0,111270.0,0.27165895]
[1757313303388,0.04261878,111280.0,111270.0,0.27165895]
[1757313303548,0.04542701,111280.0,111270.0,0.27165895]
[1757313310413,0.22515382,111280.0,111270.0,0.27165895]
[1757313310605,0.22234559,111280.0,111270.0,0.27165895]
[1757313312984,0.22234559,111280.0,111270.0,0.09191599]
[1757313313189,0.22234559,111280.0,111270.0,0.27165895]
[1757313314466,0.22234559,111280.0,111270.0,0.09191599]
[1757313316726,0.41095764,111280.0,111270.0,0.09191599]
[1757313318176,0.41095764,111280.0,111270.0,0.27165895]
[1757313320384,0.41096986,111280.0,111270.0,0.27165895]
[1757313320996,0.41096986,111280.0,111260.0,0.05793759]
[1757313321189,0.41096986,111280.0,111260.0,0.03699877]
[1757313321190,0.52374571,111270.0,111260.0,0.03699877]
[1757313321394,0.52291723,111270.0,111260.0,0.01]
[1757313322145,0.54991992,111270.0,111260.0,0.01]
[1757313322359,0.73854419,111270.0,111260.0,0.01]
[1757313322719,0.54991992,111270.0,111260.0,0.01]
[1757313323153,0.80762419,111270.0,111260.0,0.01]
[1757313324551,0.61999992,111270.0,111260.0,0.011]
[1757313325090,0.61999992,111270.0,111260.0,0.01]
[1757313326033,1.14862419,111270.0,111260.0,0.01]
[1757313326408,1.17278419,111270.0,111260.0,0.01]
[1757313326792,1.26470018,111270.0,111260.0,0.01]
[1757313331852,1.48038986,111270.0,111260.0,0.0008754]
[1757313332285,1.26470018,111270.0,111260.0,0.0008754]
[1757313333276,1.26474018,111270.0,111260.0,0.0008754]
[1757313345198,1.28409331,111270.0,111260.0,0.0008754]
[1757313352509,0.75736477,111270.0,111260.0,0.0008754]
[1757313352714,1.13461331,111270.0,111260.0,0.0008754]
[1757313352913,0.73320477,111270.0,111260.0,0.0008754]
[1757313353137,0.64128878,111270.0,111260.0,0.0010154]
[1757313353341,0.96003992,111270.0,111260.0,0.0010154]
[1757313355044,0.95805992,111270.0,111260.0,0.0010154]
[1757313355232,0.96012992,111270.0,111260.0,0.0010154]
[1757313355631,0.96012992,111270.0,111260.0,0.0008754]
[1757313369412,0.77150565,111270.0,111260.0,0.0008754]
[1757313369624,0.96012992,111270.0,111260.0,0.0008754]
[1757313369844,0.95488992,111270.0,111260.0,0.0010154]
[1757313370053,0.96019992,111270.0,111260.0,0.0008754]
[1757313376191,0.77157565,111270.0,111260.0,0.0008754]
[1757313376356,0.96019992,111270.0,111260.0,0.0008754]
[1757313380461,0.96027002,111270.0,111260.0,0.0008754]
[1757313381210,0.95820002,111270.0,111260.0,0.18077452]
[1757313382343,0.96020002,111270.0,111260.0,0.18077452]
[1757313384455,0.96020002,111270.0,111260.0,0.0008754]
[1757313388776,0.77150565,111270.0,111260.0,0.0010154]
[1757313389014,0.96020002,111270.0,111260.0,0.0010154]
[1757313389401,0.96020002,111270.0,111260.0,0.18077452]
[1757313391643,0.96020002,111270.0,111260.0,0.0010154]
[1757313393529,0.77150565,111270.0,111260.0,0.0010154]
[1757313393771,0.96020002,111270.0,111260.0,0.0010154]
[1757313394318,0.96020002,111270.0,111260.0,0.18077452]
[1757313398222,0.96020002,111270.0,111260.0,0.0010154]
[1757313399242,0.96020002,111270.0,111260.0,0.0008754]
[1757313419296,0.77150565,111270.0,111260.0,0.0008754]
[1757313419526,0.96020002,111270.0,111260.0,0.0008754]
[1757313419678,0.96020002,111270.0,111260.0,0.18063452]
[1757313420311,0.63101706,111270.0,111260.0,0.18077452]
[1757313420514,0.96016002,111270.0,111260.0,0.18077452]
[1757313421889,0.77146565,111270.0,111260.0,0.18077452]
[1757313422106,0.96016002,111270.0,111260.0,0.18077452]
[1757313422304,0.95816002,111270.0,111260.0,0.18077452]
[1757313422627,0.77841706,111270.0,111260.0,0.18077452]
[1757313422932,0.77837706,111270.0,111260.0,0.18077452]
[1757313423433,0.95812002,111270.0,111260.0,0.18077452]
[1757313423876,0.96023002,111270.0,111260.0,0.18077452]
[1757313424294,0.96023002,111270.0,111260.0,0.18063452]
[1757313426438,0.96023002,111270.0,111260.0,0.18077452]
[1757313426823,0.96023002,111270.0,111260.0,0.18063452]
[1757313428010,0.95812002,111270.0,111260.0,0.18077452]
[1757313433300,0.96023002,111270.0,111260.0,0.18077452]
[1757313435031,0.76942565,111270.0,111260.0,0.18077452]
[1757313435374,0.95812002,111270.0,111260.0,0.18077452]
[1757313436068,0.95785002,111270.0,111260.0,0.18077452]
[1757313437060,0.95996002,111270.0,111260.0,0.18077452]
[1757313440441,1.08571561,111270.0,111260.0,0.18063452]
[1757313455110,1.08571561,111270.0,111260.0,0.0008754]
[1757313467906,0.75661265,111270.0,111260.0,0.18063452]
[1757313468160,1.08567561,111270.0,111260.0,0.18077452]
[1757313470174,1.08567561,111270.0,111260.0,0.0010154]
[1757313470328,1.08567561,111270.0,111260.0,0.0008754]
[1757313474996,1.01659561,111270.0,111260.0,0.0008754]
[1757313475370,0.55282565,111270.0,111260.0,0.18063452]
[1757313475568,0.51732269,111270.0,111260.0,0.18077452]
[1757313479107,0.69706565,111270.0,111260.0,0.18077452]
[1757313481281,1.01151561,111270.0,111260.0,0.18077452]
[1757313481902,1.01151561,111270.0,111260.0,0.14973529]
[1757313482163,1.01444561,111270.0,111260.0,0.10195817]
[1757313484853,1.01658561,111270.0,111260.0,0.10195817]
[1757313487211,0.51732269,111270.0,111260.0,0.10195817]
[1757313487385,1.01151561,111270.0,111260.0,0.10195817]
[1757313488001,1.01444561,111270.0,111260.0,0.10195817]
[1757313488210,0.69706565,111270.0,111260.0,0.10195817]
[1757313488411,0.51732269,111270.0,111260.0,0.10195817]
[1757313490670,0.17732269,111270.0,111260.0,0.10195817]
[1757313492091,0.35706565,111270.0,111260.0,0.09631486]
[1757313493697,0.17732269,111270.0,111260.0,0.09631486]
[1757313494249,0.17732269,111270.0,111260.0,0.09335728]
[1757313495699,0.17732269,111270.0,111260.0,0.09046419]
[1757313497404,0.17728269,111270.0,111260.0,0.51785896]
[1757313497606,0.17728269,111270.0,111260.0,0.54485859]
[1757313497806,0.15028,111270.0,111260.0,0.54485859]
[1757313498036,0.15028,111270.0,111260.0,0.51776896]
[1757313498724,0.14928,111270.0,111260.0,0.51776896]
[1757313498870,0.15028,111270.0,111260.0,0.51776896]
[1757313499272,0.15028,111270.0,111260.0,0.66704896]
[1757313499710,0.15028,111270.0,111260.0,0.98158892]
[1757313500329,0.15028,111270.0,111260.0,0.66713896]
[1757313500706,0.001,111270.0,111260.0,0.66713896]
[1757313500907,0.001,111270.0,111260.0,0.98158892]
[1757313501494,0.001,111270.0,111260.0,1.00858796]
[1757313502182,0.15968,111280.0,111270.0,0.17974296]
[1757313502375,0.0104,111280.0,111270.0,0.27179895]
[1757313503585,0.0104,111280.0,111270.0,0.29879712]
[1757313504493,0.0114,111280.0,111270.0,0.29879712]
[1757313508965,0.0144,111280.0,111270.0,0.44807712]
[1757313509572,0.0114,111280.0,111270.0,0.44807712]
[1757313510765,0.0114,111280.0,111270.0,0.29879712]
[1757313511863,0.40115169,111280.0,111270.0,0.27165895]
[1757313512110,0.33073329,111280.0,111270.0,0.27165895]
[1757313512290,0.33073329,111280.0,111270.0,0.17974296]
[1757313512515,0.35773257,111280.0,111270.0,0.17974296]
[1757313513729,0.04342928,111280.0,111270.0,0.17974296]
[1757313514552,0.04342928,111280.0,111270.0,0.17988296]
[1757313514724,0.22315609,111280.0,111270.0,0.17974296]
[1757313515141,0.04342928,111280.0,111270.0,0.17974296]
[1757313519830,0.35773257,111280.0,111270.0,0.17974296]
[1757313523956,0.35773257,111280.0,111270.0,0.17988296]
[1757313527743,0.33073329,111280.0,111270.0,0.17988296]
[1757313530126,0.47997329,111280.0,111270.0,0.17988296]
[1757313530868,0.47997329,111280.0,111270.0,0.17974296]
[1757313531073,0.6597001,111280.0,111270.0,0.17974296]
[1757313533513,0.17974296,111270.0,111250.0,0.17982175]
[1757313533720,0.31641329,111260.0,111250.0,0.27173774]
[1757313533922,0.31936329,111260.0,111250.0,0.27173774]
[1757313534132,0.31936329,111260.0,111250.0,0.29281656]
[1757313534944,0.49912241,111260.0,111250.0,0.29367656]
[1757313535399,0.49912241,111260.0,111250.0,0.29267656]
[1757313535628,0.49912241,111260.0,111250.0,0.27273774]
[1757313536017,0.49912241,111260.0,111250.0,0.09396261]
[1757313536018,0.64836241,111260.0,111250.0,0.09396261]
[1757313536399,0.64836241,111260.0,111250.0,0.09296261]
[1757313536814,0.64836241,111260.0,111250.0,0.09496261]
[1757313537198,0.64836241,111260.0,111250.0,0.09196261]
[1757313537784,0.64836241,111260.0,111250.0,4.662e-05]
[1757313538747,0.64836241,111260.0,111250.0,0.00104662]
[1757313540216,0.64936241,111260.0,111250.0,0.00104662]
[1757313543041,0.64936241,111260.0,111250.0,4.662e-05]
[1757313545264,0.98936241,111260.0,111250.0,4.662e-05]
[1757313545493,1.13114863,111260.0,111250.0,4.662e-05]
[1757313545702,1.15450863,111260.0,111250.0,4.662e-05]
[1757313546079,0.17981262,111230.0,111210.0,0.40871034]
[1757313546281,0.32909262,111230.0,111220.0,0.11285481]
[1757313546523,0.64550591,111230.0,111220.0,0.11285481]
[1757313546702,0.64845591,111230.0,111220.0,0.09191599]
[1757313546920,0.64845591,111230.0,111220.0,0.27173976]
[1757313547670,0.33415262,111230.0,111220.0,0.27173976]
[1757313547907,0.33415262,111230.0,111220.0,0.27373976]
[1757313548578,0.33415262,111230.0,111220.0,0.27473976]
[1757313548932,0.33415262,111230.0,111220.0,0.27273976]
[1757313549163,0.33415262,111230.0,111220.0,0.27173976]
[1757313550368,0.64845591,111230.0,111220.0,0.27173976]
[1757313550578,0.64845591,111230.0,111220.0,0.27273976]
[1757313551133,0.64845591,111230.0,111220.0,0.27373976]
[1757313552171,0.31936329,111230.0,111220.0,0.27394976]
[1757313552367,0.14932,111230.0,111220.0,0.27394976]
[1757313554523,0.15227,111230.0,111220.0,0.27394976]
[1757313554765,0.65628135,111240.0,111220.0,0.27394976]
[1757313554899,0.64636473,111240.0,111220.0,0.27394976]
[1757313556032,0.64636473,111240.0,111220.0,0.27294976]
[1757313556233,0.49704473,111240.0,111220.0,0.27294976]
[1757313556537,0.64736473,111240.0,111220.0,0.27294976]
[1757313557099,0.64736473,111240.0,111220.0,0.27194976]